bitfinex/quotes_ETHUSD_20250721
["timestamp","ask_amount","ask_price","bid_price","bid_amount"]
[1753094572428,1e-08,3792.9,3792.8,2.63757456]
[1753094572833,1e-08,3792.9,3792.8,0.001]
[1753094573197,0.44110001,3792.9,3792.8,0.001]
[1753094573628,1e-08,3792.9,3792.8,0.001]
[1753094574435,1e-08,3792.9,3792.8,3.1369403]
[1753094574600,1e-08,3792.9,3792.8,4.55202476]
[1753094574800,1e-08,3792.9,3792.8,11.68902476]
[1753094575026,1e-08,3792.9,3792.8,11.66265902]
[1753094576427,1e-08,3792.9,3792.8,15.86502602]
[1753094577614,1e-08,3792.9,3792.8,11.72802602]
[1753094577847,1e-08,3792.9,3792.8,4.52565902]
[1753094578055,1e-08,3792.9,3792.8,11.68702476]
[1753094578356,1e-08,3792.9,3792.8,11.66065902]
[1753094581559,1e-08,3792.9,3792.8,11.19365902]
[1753094581936,1e-08,3792.9,3792.8,11.66665902]
[1753094582463,1e-08,3792.9,3792.8,17.05272302]
[1753094582645,1e-08,3792.9,3792.8,11.66665902]
[1753094583929,1e-08,3792.9,3792.8,31.00545202]
[1753094584268,1e-08,3792.9,3792.8,17.93486902]
[1753094584724,1e-08,3792.9,3792.8,13.79386902]
[1753094584923,1e-08,3792.9,3792.8,17.93186902]
[1753094586523,1e-08,3792.9,3792.8,16.37931302]
[1753094586725,1e-08,3792.9,3792.8,14.96000902]
[1753094587026,1e-08,3792.9,3792.8,15.65492502]
[1753094587265,1e-08,3792.9,3792.8,14.71169402]
[1753094587966,1e-08,3792.9,3792.8,11.79485902]
[1753094588139,1e-08,3792.9,3792.8,11.78885902]
[1753094588666,1e-08,3792.9,3792.8,11.78985902]
[1753094588867,1e-08,3792.9,3792.8,11.31685902]
[1753094589824,1e-08,3792.9,3792.8,7.18385902]
[1753094590126,1e-08,3792.9,3792.8,10.49125902]
[1753094590339,1e-08,3792.9,3792.8,3.35925902]
[1753094590544,1e-08,3792.9,3792.8,7.49125902]
[1753094590743,1e-08,3792.9,3792.8,6.90077456]
[1753094592856,1e-08,3792.9,3792.8,7.35847456]
[1753094593055,1e-08,3792.9,3792.8,10.35847456]
[1753094594070,1e-08,3792.9,3792.8,15.85708356]
[1753094594292,1e-08,3792.9,3792.8,11.11177456]
[1753094594458,1e-08,3792.9,3792.8,12.48662245]
[1753094595572,1e-08,3792.9,3792.8,11.27462245]
[1753094595760,1e-08,3792.9,3792.8,7.14362245]
[1753094595966,1e-08,3792.9,3792.8,11.27562245]
[1753094596260,1e-08,3792.9,3792.8,8.27562245]
[1753094596964,3.44040505,3792.9,3792.8,0.001]
[1753094597165,3.91300505,3792.9,3792.8,0.001]
[1753094597350,1.27650001,3792.9,3792.8,0.001]
[1753094597668,3.91300505,3792.9,3792.8,0.001]
[1753094598256,1.27650001,3792.9,3792.8,0.001]
[1753094599152,0.80390001,3792.9,3792.8,0.001]
[1753094599358,1.27650001,3792.9,3792.8,0.001]
[1753094603078,1e-08,3792.9,3792.8,0.001]
[1753094603782,1e-08,3792.9,3792.8,2.63757456]
[1753094603973,0.7585,3793.7,3792.8,2.63757456]
[1753094603974,0.7585,3793.7,3793.6,2.63601855]
[1753094603975,0.002,3793.7,3793.6,2.63601855]
[1753094604957,0.002,3793.7,3793.6,3.49447873]
[1753094605157,0.002,3793.7,3793.6,3.46811855]
[1753094605758,0.002,3793.7,3793.6,2.63601855]
[1753094606046,0.002,3793.7,3793.6,3.09371855]
[1753094606260,0.002,3793.7,3793.6,4.0826019]
[1753094607085,0.002,3793.7,3793.6,4.2138019]
[1753094607890,1e-08,3793.7,3793.6,7.24016208]
[1753094608066,1e-08,3793.7,3793.6,7.2138019]
[1753094608548,1e-08,3793.7,3793.6,7.9815019]
[1753094608748,1e-08,3793.7,3793.6,7.0826019]
[1753094608968,1e-08,3793.7,3793.6,11.2426019]
[1753094609170,1e-08,3793.7,3793.6,26.7591899]
[1753094609417,1e-08,3793.7,3793.6,12.0021019]
[1753094609686,1e-08,3793.7,3793.6,30.7905979]
[1753094609889,1e-08,3794.5,3794.4,3.39196278]
[1753094610074,1e-08,3794.5,3794.4,10.89315906]
[1753094610278,1e-08,3794.5,3794.4,11.35085906]
[1753094611578,1e-08,3794.5,3794.4,11.35285906]
[1753094611780,1e-08,3794.5,3794.4,11.35185906]
[1753094613292,1e-08,3794.5,3794.4,20.89185106]
[1753094613790,1e-08,3794.5,3794.4,21.44485106]
[1753094614290,1e-08,3794.5,3794.4,20.71515206]
[1753094614591,0.7737,3796.6,3796.5,2.634005]
[1753094614790,1.2463,3796.6,3796.5,2.634005]
[1753094615766,0.008,3796.6,3796.5,2.634005]
[1753094615965,0.008,3796.6,3796.5,3.57741141]
[1753094616803,0.008,3796.6,3796.5,2.634005]
[1753094616965,0.008,3796.6,3796.5,6.800005]
[1753094618868,0.008,3796.6,3796.5,2.765205]
[1753094619068,0.008,3796.6,3796.5,6.932205]
[1753094619700,0.008,3796.6,3796.5,2.765205]
[1753094620016,0.008,3796.6,3796.5,6.930205]
[1753094620479,0.008,3796.6,3796.5,6.799005]
[1753094620680,0.008,3796.6,3796.5,7.74231967]
[1753094620895,0.008,3796.6,3796.5,8.20001967]
[1753094621088,0.008,3796.6,3796.5,2.634005]
[1753094621276,1.278,3796.6,3796.5,2.634005]
[1753094621477,1.278,3796.6,3796.3,2.63413975]
[1753094621678,1.278,3796.6,3796.5,2.634005]
[1753094621880,0.8054,3796.6,3796.5,2.634005]
[1753094622069,0.8054,3796.6,3796.5,7.74715402]
[1753094622070,0.008,3796.6,3796.5,7.74715402]
[1753094623729,0.449,3796.6,3795.3,1.2259]
[1753094623939,0.008,3796.6,3795.4,4.6309]
[1753094624212,0.008,3796.6,3796.5,2.634005]
[1753094624726,0.008,3796.6,3796.4,6.8020567]
[1753094625032,0.008,3796.6,3794.8,0.33748622]
[1753094625033,0.441,3796.5,3795.3,0.762]
[1753094625187,0.441,3796.5,3796.2,2.63415852]
[1753094625384,0.008,3796.6,3796.2,2.63415852]
[1753094625385,0.008,3796.6,3796.3,4.168]
[1753094625701,0.008,3796.6,3796.5,2.634005]
[1753094625894,0.008,3796.6,3796.5,6.802005]
[1753094627816,0.008,3796.6,3796.5,4.166]
[1753094628020,0.449,3796.6,3796.2,2.63419326]
[1753094628323,2.63411396,3796.4,3795.7,2.63450943]
[1753094628496,0.441,3796.3,3795.8,6.80144297]
[1753094628698,0.441,3796.2,3795.9,4.169]
[1753094628897,0.441,3796.1,3795.7,2.63454357]
[1753094629098,0.441,3796.1,3795.7,6.80254357]
[1753094629416,0.441,3796.4,3795.7,4.92725436]
[1753094629717,0.441,3796.4,3796.0,2.63430587]
[1753094630085,0.441,3796.4,3795.3,2.63479362]
[1753094630086,3.07516204,3796.3,3795.3,2.6348264]
[1753094630391,0.008,3796.6,3794.5,6.7859]
[1753094630392,1.244,3796.2,3795.4,6.80075291]
[1753094630592,0.803,3796.2,3795.8,0.1312]
[1753094630801,2.63440323,3796.0,3795.8,0.1312]
[1753094631002,3.07542134,3795.9,3795.8,0.1312]
[1753094631210,3.88022134,3795.9,3795.8,0.1312]
[1753094631637,1.2458,3795.9,3795.8,0.1312]
[1753094632288,3.88022134,3795.9,3795.8,0.1312]
[1753094632510,1.2458,3795.9,3795.8,0.1312]
[1753094633435,0.8048,3796.2,3795.8,2.76569075]
[1753094633605,0.8048,3796.2,3795.9,0.02634421]
[1753094633793,0.8048,3796.2,3796.1,0.1312]
[1753094633990,0.8128,3796.6,3796.1,0.1312]
[1753094634189,0.8128,3796.6,3796.4,0.1312]
[1753094634390,0.8128,3796.6,3796.5,2.634005]
[1753094634690,0.008,3796.6,3796.5,2.634005]
[1753094634890,0.008,3796.6,3796.5,2.66034505]
[1753094635426,0.008,3796.6,3796.5,3.1765716]
[1753094635611,0.008,3796.6,3796.5,3.6404716]
[1753094636787,0.008,3796.6,3796.5,7.8014716]
[1753094637123,0.01,3796.6,3796.5,7.8014716]
[1753094639131,0.01,3796.6,3796.5,8.6014716]
[1753094640931,0.002,3797.4,3797.3,2.63345008]
[1753094641234,0.002,3797.4,3797.3,6.78745008]
[1753094641533,0.002,3797.4,3797.3,7.38255008]
[1753094642432,0.002,3797.4,3797.3,6.91865008]
[1753094643497,0.002,3797.4,3797.3,6.91765008]
[1753094644136,0.002,3797.4,3797.3,2.76465008]
[1753094644441,0.002,3797.4,3797.3,6.91765008]
[1753094644599,0.002,3797.4,3797.3,0.1312]
[1753094644798,0.002,3797.4,3797.3,4.2832]
[1753094645032,0.002,3797.4,3797.3,0.1312]
[1753094645234,0.002,3797.4,3797.3,4.2832]
[1753094645235,1.2145,3797.4,3797.3,4.2832]
[1753094645436,1.2145,3797.4,3797.3,0.1312]
[1753094645600,3.84788073,3797.4,3797.3,0.1312]
[1753094645798,1.2145,3797.4,3797.3,0.1312]
[1753094646201,0.7735,3797.4,3797.3,0.1312]
[1753094646397,0.7735,3797.4,3796.9,4.151]
[1753094646608,0.7735,3797.4,3797.2,0.1312]
[1753094646812,3.07445008,3797.3,3797.2,0.1312]
[1753094647048,0.441,3797.3,3795.9,0.7543]
[1753094647226,0.441,3797.3,3797.0,0.1312]
[1753094647407,3.07451943,3797.2,3797.0,0.1312]
[1753094647609,2.63358879,3797.1,3797.0,0.1312]
[1753094647831,0.441,3797.1,3797.0,0.1312]
[1753094648513,3.07458879,3797.1,3797.0,0.1312]
[1753094649238,1.2138,3797.1,3796.7,0.1312]
[1753094649438,3.07465815,3797.0,3796.7,0.1312]
[1753094649652,3.07468394,3797.0,3796.7,0.1312]
[1753094649837,2.63389658,3796.7,3796.1,4.15]
[1753094650036,2.63389658,3796.7,3796.5,0.1312]
[1753094650251,0.441,3796.6,3796.5,0.1312]
[1753094650947,2.63402636,3796.5,3796.3,0.1312]
[1753094651113,0.441,3796.4,3796.3,0.1312]
[1753094651315,3.07507438,3796.4,3796.3,0.1312]
[1753094651917,2.63414377,3796.3,3795.6,4.147]
[1753094652118,3.07164377,3796.3,3796.0,0.1312]
[1753094652328,2.63423751,3796.2,3796.0,0.1312]
[1753094652534,2.63445117,3795.9,3795.3,4.147]
[1753094652731,2.63445117,3795.9,3795.7,0.1312]
[1753094652954,3.07199075,3795.8,3795.7,0.1312]
[1753094653343,2.63461844,3795.7,3795.3,4.147]
[1753094653543,0.8842,3796.1,3795.4,0.1312]
[1753094653744,0.8842,3796.1,3795.2,2.63485466]
[1753094653745,2.63444238,3795.9,3795.2,2.63485466]
[1753094653957,2.63444238,3795.9,3795.6,0.1312]
[1753094654358,0.4375,3795.8,3795.6,0.1312]
[1753094654577,14.5,3795.9,3795.6,0.1312]
[1753094655336,3.82479584,3796.1,3795.6,0.1312]
[1753094655564,0.4375,3796.0,3795.6,0.1312]
[1753094655874,0.4375,3796.0,3795.6,2.76577312]
[1753094656187,0.753,3796.1,3795.6,2.76582692]
[1753094656340,0.753,3796.1,3795.6,0.1312]
[1753094656685,3.82479054,3796.1,3795.6,0.1312]
[1753094656835,2.63449123,3795.8,3795.6,0.1312]
[1753094657344,0.4375,3795.7,3795.6,0.1312]
[1753094657884,0.4375,3795.7,3795.4,0.1312]
[1753094658066,2.63440069,3796.0,3795.4,0.1312]
[1753094658569,2.63443989,3795.9,3795.4,0.1312]
[1753094658937,3.07193989,3795.9,3795.4,0.1312]
[1753094659137,7.66048261,3796.1,3795.4,0.1312]
[1753094659471,3.07203652,3795.8,3795.4,0.1312]
[1753094659673,3.07203652,3795.8,3795.4,0.1322]
[1753094659841,0.4375,3795.7,3795.4,0.1322]
[1753094660465,7.66048623,3796.1,3795.4,0.1322]
[1753094660466,5.0262,3796.1,3795.4,0.1322]
[1753094660687,3.07218178,3795.6,3795.4,0.1322]
[1753094661054,0.4375,3795.5,3795.4,0.1322]
[1753094662450,2.63446189,3795.9,3795.4,0.1322]
[1753094662652,2.63449359,3795.8,3795.4,0.1322]
[1753094662953,2.63462965,3795.6,3795.4,0.1322]
[1753094663452,0.4375,3795.7,3795.4,0.001]
[1753094663453,3.07219898,3795.5,3795.4,0.001]
[1753094663653,3.85519898,3795.5,3795.4,0.001]
[1753094664384,7.99019898,3795.5,3795.4,0.001]
[1753094665380,7.98919898,3795.5,3795.4,0.001]
[1753094666690,22.48919898,3795.5,3795.4,0.001]
[1753094669361,3.40464611,3795.0,3794.9,0.001]
[1753094669583,7.53364611,3795.0,3794.9,0.001]
[1753094669781,7.97114611,3795.0,3794.9,0.001]
[1753094670205,22.47114611,3795.0,3794.9,0.001]
[1753094671326,25.53114611,3795.0,3794.9,0.001]
[1753094673226,2.63539323,3794.6,3793.9,0.0342]
[1753094673392,4.2592,3794.5,3793.9,0.0342]
[1753094673718,18.7592,3794.5,3793.9,2.67000685]
[1753094673877,0.753,3794.4,3793.9,2.63580549]
[1753094674079,4.2572,3794.3,3793.9,2.63580549]
[1753094674721,3.06,3795.4,3794.0,1.2079]
[1753094674928,0.1312,3795.1,3794.2,0.1312]
[1753094675080,4.5625,3795.3,3794.9,2.63511554]
[1753094675081,4.2562,3795.3,3794.9,2.63511554]
[1753094675286,4.2562,3795.3,3794.0,0.7577]
[1753094675287,18.625,3795.3,3794.0,1.2079]
[1753094675485,0.1312,3795.1,3794.5,2.76659296]
[1753094675755,4.128,3795.0,3794.5,0.1312]
[1753094676217,0.1312,3795.1,3794.5,0.1312]
[1753094676399,14.5,3795.3,3795.2,2.63490725]
[1753094676599,18.628,3795.3,3795.2,2.63490725]
[1753094677098,4.128,3795.3,3795.2,2.63490725]
[1753094677501,4.129,3795.3,3795.2,2.63490725]
[1753094677728,4.128,3795.3,3795.2,2.63490725]
[1753094677933,4.128,3795.3,3795.1,2.63496015]
[1753094678219,4.128,3795.3,3795.2,2.63490725]
[1753094678406,4.128,3795.3,3795.1,2.63495725]
[1753094678815,4.127,3795.3,3794.9,2.63505256]
[1753094679011,4.127,3795.3,3795.1,2.76615586]
[1753094679214,0.7604,3796.4,3795.5,0.7936]
[1753094679520,2.63414377,3796.3,3795.5,3.42824019]
[1753094679721,2.63414377,3796.3,3795.6,2.63462183]
[1753094679926,0.7604,3796.4,3795.5,0.7936]
[1753094680126,14.5,3796.3,3795.4,2.63475219]
[1753094680430,2.63429568,3796.1,3795.4,2.63475219]
[1753094680816,4.126,3796.2,3795.2,1.2438]
[1753094681015,3.06,3796.5,3795.2,3.4729877]
[1753094681250,2.63594791,3796.6,3796.5,2.634005]
[1753094681251,0.002,3796.6,3796.5,2.634005]
[1753094681759,0.002,3796.6,3796.5,3.11054505]
[1753094682128,0.002,3796.6,3796.5,3.91414505]
[1753094682329,0.002,3796.6,3796.5,3.887805]
[1753094682558,0.002,3796.6,3796.5,4.53999464]
[1753094682852,0.002,3796.6,3796.5,8.014805]
[1753094683956,0.002,3796.6,3796.2,0.8036]
[1753094684460,0.002,3796.6,3796.1,4.126]
[1753094684927,0.002,3796.6,3796.2,2.63415657]
[1753094685123,0.002,3796.6,3795.9,4.126]
[1753094685333,0.002,3796.6,3796.0,2.63435194]
[1753094685655,0.002,3796.6,3796.0,2.63433287]
[1753094685956,2.63593594,3796.6,3795.9,6.76040872]
[1753094686322,0.7701,3796.5,3795.4,3.09756595]
[1753094686524,2.63412194,3796.4,3795.7,2.63454752]
[1753094686738,2.63415962,3796.3,3795.6,2.634629]
[1753094687023,2.63409633,3796.4,3795.4,3.09756696]
[1753094687322,14.5,3796.3,3795.4,0.4628]
[1753094687522,14.5,3796.3,3795.4,1.30201213]
[1753094687722,14.5,3796.3,3796.0,2.63430227]
[1753094688057,14.5,3796.3,3795.5,0.4628]
[1753094688058,0.7701,3796.5,3796.1,2.63427959]
[1753094688625,14.5,3796.4,3796.1,2.63427959]
[1753094688819,14.5,3796.4,3796.1,0.4628]
[1753094689120,0.002,3796.6,3796.2,2.63421316]
[1753094689327,0.002,3796.6,3796.3,0.1312]
[1753094689755,0.002,3796.6,3796.3,3.22813224]
[1753094690058,0.002,3796.6,3796.3,0.1312]
[1753094690560,0.002,3796.6,3796.3,2.76533955]
[1753094691158,0.002,3796.6,3796.4,2.63407137]
[1753094692157,0.002,3796.6,3796.3,3.22813377]
[1753094692362,0.002,3796.6,3796.4,2.63406733]
[1753094692946,0.002,3796.6,3796.3,0.1312]
[1753094693140,0.4337,3796.6,3796.3,0.1312]
[1753094693343,3.06764625,3796.6,3796.3,0.1312]
[1753094693869,0.4337,3796.6,3796.3,0.1312]
[1753094694052,2.634005,3796.5,3795.8,4.5808]
[1753094694260,2.634005,3796.5,3796.1,0.1312]
[1753094694766,2.63408132,3796.4,3795.8,0.4628]
[1753094694934,2.63408132,3796.4,3795.8,3.22848998]
[1753094695135,2.76523099,3796.5,3795.8,3.22848998]
[1753094695434,5.82523099,3796.5,3795.8,3.22848998]
[1753094695668,3.1912,3796.5,3795.9,2.63437586]
[1753094696084,5.82520536,3796.5,3795.9,2.63437586]
[1753094696687,5.82520536,3796.5,3795.5,4.114]
[1753094696688,7.175,3796.5,3795.5,4.114]
[1753094696887,0.1312,3796.3,3795.7,2.6344917]
[1753094697386,2.63422051,3796.2,3795.6,2.76581962]
[1753094697581,3.1912,3796.3,3795.6,2.76581962]
[1753094697582,5.82536975,3796.3,3795.6,2.76581962]
[1753094697782,3.06,3796.3,3795.9,2.63435907]
[1753094698082,3.06,3796.3,3796.0,2.7655282]
[1753094698468,17.56,3796.3,3796.0,2.7655282]
[1753094698781,17.9917,3796.3,3796.0,2.7655282]
[1753094699551,17.9917,3796.3,3796.1,2.63427244]
[1753094699753,3.4917,3796.3,3796.1,2.63427244]
[1753094699953,3.4917,3796.3,3796.0,2.76553768]
[1753094700353,1.23,3796.2,3796.0,0.1312]
[1753094700967,0.4317,3796.1,3796.0,0.1312]
[1753094701168,3.06,3796.1,3796.0,2.76555194]
[1753094701479,3.06,3796.1,3796.0,0.1312]
[1753094702267,3.06,3796.1,3796.0,2.76555194]
[1753094703294,3.06,3796.1,3796.0,4.03179355]
[1753094703705,3.06,3796.1,3796.0,3.56899355]
[1753094704394,3.06,3796.1,3796.0,4.03179355]
[1753094705942,0.002,3796.6,3796.0,1.39744161]
[1753094706107,0.8278,3796.6,3796.5,2.634005]
[1753094706313,0.8278,3796.6,3796.5,2.765205]
[1753094707435,0.002,3796.6,3796.5,2.765205]
[1753094709930,0.002,3796.6,3796.5,0.1312]
[1753094710145,0.4337,3796.6,3796.5,0.1312]
[1753094711219,0.002,3796.6,3796.5,0.1312]
[1753094711417,4.105,3796.6,3796.5,0.1312]
[1753094711629,0.002,3796.6,3796.5,0.1312]
[1753094712030,4.104,3796.6,3796.5,0.1312]
[1753094713155,4.102,3796.6,3796.5,0.1312]
[1753094713304,4.5374,3796.6,3796.2,2.63421285]
[1753094713509,0.4354,3796.5,3796.2,2.76541285]
[1753094713735,0.4354,3796.5,3796.2,0.1312]
[1753094714432,1.2225,3796.4,3795.5,4.8556]
[1753094714712,3.06954377,3796.3,3796.0,0.1312]
[1753094714913,4.099,3796.2,3796.0,0.1312]
[1753094715222,4.5344,3796.2,3796.0,0.1312]
[1753094715421,0.4354,3796.1,3796.0,0.1312]
[1753094716555,0.4354,3796.1,3796.0,2.76555194]
[1753094716723,4.099,3796.2,3796.1,2.63428255]
[1753094718046,0.7871,3796.4,3796.3,2.63414377]
[1753094718251,4.8841,3796.4,3796.3,2.63414377]
[1753094718679,4.8821,3796.4,3796.3,2.63414377]
[1753094720071,0.002,3796.6,3796.5,2.634005]
[1753094720874,4.096,3796.6,3796.5,3.070205]
[1753094721171,0.002,3796.6,3796.5,3.77447409]
[1753094721576,0.002,3796.6,3796.5,4.57777409]
[1753094723041,0.002,3796.6,3796.5,8.67077409]
[1753094723238,1e-08,3796.6,3796.5,8.67077409]
[1753094723544,1e-08,3796.6,3796.5,4.57777409]
[1753094723763,1e-08,3796.6,3796.5,8.69611414]
[1753094723965,1e-08,3796.6,3796.5,8.66977409]
[1753094724572,1e-08,3796.6,3796.5,4.57777409]
[1753094724781,1e-08,3796.6,3796.5,8.66877409]
[1753094726336,1e-08,3796.6,3796.5,7.86647409]
[1753094726970,1e-08,3796.6,3796.5,7.43127409]
[1753094727360,1e-08,3796.6,3796.5,7.86747409]
[1753094727557,1e-08,3796.6,3796.5,3.77447409]
[1753094727876,1e-08,3796.6,3796.5,7.89381414]
[1753094728073,1e-08,3796.6,3796.5,7.86747409]
[1753094728274,1e-08,3796.6,3796.5,3.77447409]
[1753094728478,1e-08,3796.6,3796.5,7.89381414]
[1753094728680,1e-08,3796.6,3796.5,7.86747409]
[1753094730062,1e-08,3796.6,3796.5,8.67927409]
[1753094731180,1e-08,3796.6,3796.5,14.66913217]
[1753094732382,1e-08,3796.6,3796.5,8.67927409]
[1753094733079,1e-08,3796.6,3796.5,4.58627409]
[1753094733277,1e-08,3796.6,3796.5,4.15007409]
[1753094733484,1e-08,3796.6,3796.5,7.42527409]
[1753094734093,1e-08,3796.6,3796.5,7.42427409]
[1753094734956,1e-08,3796.6,3796.5,2.765205]
[1753094735156,1e-08,3796.6,3796.5,6.851205]
[1753094735756,1e-08,3796.6,3796.5,2.765205]
[1753094736309,0.43540001,3796.6,3796.5,4.2162]
[1753094736463,0.43540001,3796.6,3796.5,0.1312]
[1753094736663,0.43540001,3796.6,3796.5,2.765205]
[1753094736865,0.43540001,3796.6,3796.5,0.1312]
[1753094737226,0.43540001,3796.6,3796.2,4.2162]
[1753094737399,1e-08,3796.6,3796.2,4.2162]
[1753094737568,1e-08,3796.6,3796.3,2.63413435]
[1753094737569,0.4354,3796.5,3796.3,2.63413435]
[1753094737899,0.4354,3796.4,3796.2,2.76539341]
[1753094738198,0.4354,3796.4,3796.3,2.63414377]
[1753094738362,0.4354,3796.3,3796.2,2.76540571]
[1753094739166,0.4354,3796.3,3796.2,0.1312]
[1753094739373,0.4354,3796.3,3796.1,2.63427812]
[1753094739572,0.8152,3796.4,3796.0,2.63532938]
[1753094739789,0.4354,3796.2,3796.0,2.63532938]
[1753094740004,0.8152,3796.4,3796.2,2.6342093]
[1753094740382,3.06,3796.3,3796.0,0.001]
[1753094740577,3.4954,3796.3,3796.0,2.63534762]
[1753094740876,0.4354,3796.2,3796.1,2.63427417]
[1753094741099,3.06,3796.3,3796.2,2.63421316]
[1753094741420,1e-08,3796.6,3796.5,2.634005]
[1753094741617,1e-08,3796.6,3796.5,6.853205]
[1753094741816,1e-08,3796.6,3796.5,7.321205]
[1753094742517,1e-08,3796.6,3796.5,6.853205]
[1753094743321,1e-08,3796.6,3796.5,2.765205]
[1753094743481,1e-08,3796.6,3796.5,7.75605062]
[1753094744235,1e-08,3796.6,3796.5,2.765205]
[1753094744380,1e-08,3796.6,3796.3,2.63408718]
[1753094744381,0.46220001,3796.6,3796.3,2.63412746]
[1753094744581,0.4622,3796.5,3796.1,0.1312]
[1753094744782,0.4622,3796.5,3796.4,2.63407438]
[1753094745085,1e-08,3796.6,3796.5,2.634005]
[1753094746732,0.46220001,3796.6,3796.4,0.1312]
[1753094746885,0.46220001,3796.6,3796.5,2.634005]
[1753094747311,1e-08,3796.6,3796.5,2.634005]
[1753094747991,1e-08,3796.6,3796.4,0.1312]
[1753094748329,1e-08,3796.6,3796.5,2.634005]
[1753094748623,0.46220001,3796.6,3796.5,2.634005]
[1753094749421,0.46220001,3796.6,3796.4,0.1322]
[1753094749627,1e-08,3796.6,3796.4,0.1322]
[1753094749931,0.4622,3796.5,3796.4,2.76627438]
[1753094750138,1e-08,3796.6,3796.4,2.76626181]
[1753094750434,0.46220001,3796.6,3796.4,2.76626181]
[1753094750799,0.4622,3796.5,3796.4,0.1322]
[1753094751218,0.4622,3796.5,3796.4,0.001]
[1753094751531,3.910205,3796.5,3796.4,0.001]
[1753094751931,3.448005,3796.5,3796.4,0.001]
[1753094752132,3.910205,3796.5,3796.4,0.001]
[1753094752799,1.2762,3796.5,3796.4,0.001]
[1753094754499,7.460205,3796.5,3796.4,0.001]
[1753094757752,11.544205,3796.5,3796.4,0.001]
[1753094757925,7.460205,3796.5,3796.4,0.001]
[1753094758330,11.544205,3796.5,3796.4,0.001]
[1753094762157,7.899,3796.5,3796.4,0.001]
[1753094762360,4.085,3796.5,3796.4,0.001]
[1753094763061,4.085,3796.5,3796.4,2.63507438]
[1753094763628,4.085,3796.5,3796.4,0.001]
[1753094764173,0.92730001,3796.6,3796.4,0.001]
[1753094764469,0.13120001,3796.6,3796.5,2.634005]
[1753094764644,1e-08,3796.6,3796.5,3.70575421]
[1753094764840,1e-08,3796.6,3796.5,2.634005]
[1753094766084,1e-08,3796.6,3796.4,0.001]
[1753094766281,4.5472,3796.5,3796.4,0.001]
[1753094768369,7.181205,3796.5,3796.4,0.001]
[1753094768776,4.5472,3796.5,3796.4,0.001]
[1753094768971,1e-08,3796.6,3796.4,0.001]
[1753094769250,4.084,3796.5,3796.4,0.001]
[1753094770645,1e-08,3796.6,3796.4,3.10307438]
[1753094770842,4.08400001,3796.6,3796.5,3.48816244]
[1753094772202,4.08400001,3796.6,3796.5,3.102005]
[1753094772386,1e-08,3796.6,3796.5,3.102005]
[1753094774568,1e-08,3796.6,3796.5,3.233205]
[1753094777215,0.002,3797.3,3797.2,3.46281943]
[1753094777375,0.002,3797.3,3797.2,7.89310137]
[1753094777707,4.102,3798.7,3798.2,0.8035]
[1753094778207,4.102,3798.7,3798.3,0.4398]
[1753094778611,14.5,3798.6,3798.2,3.43626569]
[1753094778789,14.5,3798.6,3798.4,0.4398]
[1753094779507,14.5,3798.6,3798.4,3.07248744]
[1753094780210,3.0,3799.1,3798.4,3.07248744]
[1753094780391,5.1,3798.5,3798.4,3.07248744]
[1753094781306,5.098,3798.5,3798.4,3.07248744]
[1753094781612,5.097,3798.5,3798.4,3.07248744]
[1753094781792,5.097,3798.5,3798.4,0.4398]
[1753094782519,5.097,3798.5,3798.4,3.07248744]
[1753094783302,1.0,3798.5,3798.4,0.4398]
[1753094783508,5.097,3798.5,3798.4,0.4398]
[1753094784121,5.097,3798.5,3798.4,3.07248744]
[1753094785480,1.0,3798.5,3798.4,3.07248744]
[1753094785680,1.0,3798.5,3798.4,3.72599234]
[1753094787298,1.0,3798.5,3798.4,3.85719234]
[1753094790843,1.0,3798.5,3798.4,0.1312]
[1753094790998,1.0,3798.5,3798.4,3.20368744]
[1753094791200,1.0,3798.5,3798.4,2.76388744]
[1753094791403,1.0,3798.5,3798.4,3.20368744]
[1753094791640,1.002,3798.5,3798.4,3.20368744]
[1753094792052,1.002,3798.5,3798.4,4.27618301]
[1753094793129,1.002,3798.5,3798.4,8.36118301]
[1753094795039,1.002,3798.5,3798.4,9.13018301]
[1753094796145,1.002,3798.5,3798.4,8.99898301]
[1753094796455,1.002,3798.5,3798.4,8.99598301]
[1753094796613,1.002,3798.5,3798.4,4.91398301]
[1753094796813,1.002,3798.5,3798.4,8.99598301]
[1753094797754,1.002,3798.5,3798.4,4.91398301]
[1753094798045,1.002,3798.5,3798.4,8.99698301]
[1753094798248,1.002,3798.5,3798.4,9.79698301]
[1753094798745,0.002,3799.3,3799.2,2.63213308]
[1753094798952,0.002,3799.3,3799.2,7.78764639]
[1753094799148,0.002,3799.3,3799.2,8.22744639]
[1753094800871,0.002,3799.3,3799.2,4.14344639]
[1753094801020,0.002,3799.3,3799.2,8.22544639]
[1753094801629,0.008,3800.3,3800.2,2.63144045]
[1753094801871,0.008,3800.3,3800.2,16.61535022]
[1753094802057,0.008,3800.3,3800.2,7.47924045]
[1753094802227,0.008,3800.3,3800.2,3.83054045]
[1753094802675,0.008,3800.3,3800.2,5.2831]
[1753094802844,0.008,3800.3,3800.2,5.81141]
[1753094803049,0.008,3800.3,3800.2,0.7658]
[1753094803388,0.008,3800.3,3799.3,0.4333]
[1753094803524,0.8201,3800.3,3799.4,4.8657]
[1753094803738,3.4514868,3800.3,3799.5,0.4333]
[1753094803943,0.8201,3800.3,3799.5,0.4333]
[1753094804147,0.8201,3800.3,3799.6,4.084]
[1753094804346,3.45147565,3800.3,3799.6,4.084]
[1753094804761,0.002,3800.1,3799.6,4.084]
[1753094804979,0.002,3800.1,3799.7,0.4333]